fUST/lending_fUST_20250930
["ID","MTS","AMOUNT","RATE_DAILY","PERIOD"]
[388426715,1759164984197,-480.0,0.00023436,2]
[388426716,1759164984225,-1188.88,0.00023436,2]
[388426717,1759164984254,-1372.12,0.00023436,2]
[388426718,1759164984381,-480.0,0.00023436,2]
[388426719,1759164984410,-535.29,0.00023436,2]
[388426720,1759164984438,-742.74,0.00023436,2]
[388426721,1759164984465,-2039.81,0.00023436,2]
[388426722,1759164984494,-160.0,0.00023437,2]
[388426723,1759164984522,-500.0,0.00023437,2]
[388426724,1759164984551,-480.0,0.00023437,2]
[388426725,1759164984641,-667.14,0.00023437,2]
[388426726,1759164984669,-483.96,0.00023437,2]
[388426727,1759164984696,-2131.08,0.00023437,2]
[388426728,1759164984722,-525.81,0.00023437,2]
[388426729,1759164984751,-576.4,0.00023437,2]
[388426730,1759164984779,-480.0,0.00023437,2]
[388426731,1759164984940,-480.0,0.00023437,2]
[388426732,1759164984967,-963.15,0.00023437,2]
[388426733,1759164984995,-480.0,0.00023437,2]
[388426734,1759164985022,-480.0,0.00023437,2]
[388426735,1759164985049,-1342.6,0.00023437,2]
[388426736,1759164985078,-480.0,0.00023437,2]
[388426737,1759164985106,-597.85,0.00023437,2]
[388426738,1759164985285,-352.81,0.00023437,2]
[388426739,1759164985320,-1572.85,0.00023437,2]
[388426740,1759164985349,-480.0,0.00023437,2]
[388426741,1759164985381,-928.66,0.00023437,2]
[388426742,1759164985410,-1385.98,0.00023437,2]
[388426743,1759164985817,-622.12,0.00023437,2]
[388426744,1759164985847,-2131.08,0.00023437,2]
[388426745,1759164985877,-732.7,0.00023437,2]
[388426746,1759164985905,-996.7,0.00023437,2]
[388426747,1759164985935,-480.0,0.00023437,2]
[388426748,1759164986118,-533.46,0.00023437,2]
[388426749,1759164986147,-486.61,0.00023437,2]
[388426750,1759164986177,-1234.02,0.00023437,2]
[388426751,1759164986203,-480.0,0.00023437,2]
[388426752,1759164986231,-480.0,0.00023437,2]
[388426753,1759164986262,-527.82,0.00023437,2]
[388426754,1759164986293,-620.42,0.00023437,2]
[388426755,1759164986321,-480.0,0.00023437,2]
[388426756,1759164987080,-349.5,0.00023436,2]
[388426757,1759164987095,-181.01,0.00023436,2]
[388426758,1759164987104,-346.81,0.00023437,2]
[388426759,1759164987126,-133.19,0.00023437,2]
[388426760,1759164987135,-480.0,0.00023437,2]
[388426761,1759164987144,-7.23,0.00023437,2]
[388426762,1759164987158,-480.0,0.00023437,2]
[388426763,1759164987175,-315.35,0.00023437,2]
[388426764,1759164994048,-2115.33,0.00023436,2]
[388426765,1759164994078,-316.51567342,0.00023436,2]
[388426766,1759164994107,-500.0,0.00023436,2]
[388426767,1759164994134,-637.61895507,0.00023436,2]
[388426768,1759164994162,-258.98679106,0.00023436,2]
[388426769,1759164994191,-500.0,0.00023436,2]
[388426770,1759164994219,-500.0,0.00023436,2]
[388426771,1759164994247,-35.09482987,0.00023436,2]
[388426772,1759164994521,-272.91750116,0.00023436,2]
[388426773,1759164994551,-500.0,0.00023436,2]
[388426774,1759164994580,-178.16924982,0.00023436,2]
[388426775,1759164994680,-1574.28,0.00023437,2]
[388426776,1759164994716,-3148.56,0.00023437,2]
[388426777,1759164994784,-3702.89,0.00023437,2]
[388426778,1759164994814,-563.98,0.00023437,2]
[388426779,1759164994842,-562.51,0.00023437,2]
[388426780,1759164994982,-945.33,0.00023437,2]
[388426781,1759164995012,-537.25,0.00023437,2]
[388426782,1759164995041,-480.0,0.00023437,2]
[388426783,1759164995070,-547.17,0.00023437,2]
[388426784,1759164995098,-1617.04,0.00023437,2]
[388426785,1759164995167,-3017.49,0.00023437,2]
[388426786,1759164995177,-99.9839992,0.00023437,2]
[388426787,1759164995199,-380.0160008,0.00023437,2]
[388426788,1759164995210,-711.45,0.00023437,2]
[388426789,1759164995220,-604.73,0.00023437,2]
[388426790,1759164995229,-1068.1,0.00023437,2]
[388426791,1759164995239,-480.0,0.00023437,2]
[388426792,1759164995250,-568.78,0.00023437,2]
[388426793,1759164995260,-480.0,0.00023437,2]
[388426794,1759164995270,-1312.68,0.00023437,2]
[388426795,1759164995279,-480.0,0.00023437,2]
[388426796,1759164995289,-765.6939992,0.00023437,2]
[388426797,1759164995315,-38.6560008,0.00023437,2]
[388426798,1759164995329,-1162.05,0.00023437,2]
[388426799,1759164995340,-480.0,0.00023437,2]
[388426800,1759164995350,-712.86,0.00023437,2]
[388426801,1759164995360,-571.17,0.00023437,2]
[388426802,1759164995369,-738.1539992,0.00023437,2]
[388426803,1759164995384,-193.3160008,0.00023437,2]
[388426804,1759164995393,-370.6639992,0.00023437,2]
[388426805,1759164995407,-562.51,0.00023437,2]
[388426806,1759164995422,-341.25,0.00023437,2]
[388426807,1759164995443,-945.33,0.00023437,2]
[388426808,1759164995461,-537.25,0.00023437,2]
[388426809,1759164995475,-480.0,0.00023437,2]
[388426810,1759164995489,-547.17,0.00023437,2]
[388426811,1759164995505,-1459.1460008,0.00023437,2]
[388426812,1759164995514,-157.8939992,0.00023437,2]
[388426813,1759164995528,-322.1060008,0.00023437,2]
[388426814,1759164995537,-1282.88,0.00023437,2]
[388426815,1759164995547,-141.4439992,0.00023437,2]
[388426816,1759164995623,4053.47225738,0.000234,2]
[388426817,1759165002665,366.0,0.000284,120]
[388426818,1759165018175,3495.21492896,0.000234,2]
[388426821,1759165029531,300.0,0.000284,120]
[388426822,1759165042608,204.71806207,0.00023335,2]
[388426823,1759165054946,-1200.0,0.00023433,2]
[388426824,1759165054974,-480.0,0.00023434,2]
[388426825,1759165055001,-606.15,0.00023434,2]
[388426826,1759165055028,-687.04,0.00023434,2]
[388426827,1759165055056,-480.0,0.00023434,2]
[388426828,1759165055085,-996.48,0.00023434,2]
[388426829,1759165055198,-1100.67,0.00023434,2]
[388426830,1759165057647,-2669.21,0.00023434,2]
[388426831,1759165057676,-2055.85,0.00023434,2]
[388426832,1759165057704,-69.89,0.00023434,2]
[388426833,1759165057755,-410.11,0.00023434,2]
[388426834,1759165057957,-480.0,0.00023434,2]
[388426835,1759165057986,-480.0,0.00023434,2]
[388426836,1759165058014,-480.0,0.00023434,2]
[388426837,1759165058046,-300.0,0.00023435,2]
[388426838,1759165058075,-552.38,0.00023436,2]
[388426839,1759165058102,-480.0,0.00023436,2]
[388426840,1759165058132,-952.9,0.00023436,2]
[388426841,1759165058164,-480.0,0.00023436,2]
[388426842,1759165058386,-600.48506062,0.00023436,2]
[388426843,1759165058568,-388.47987876,0.00023436,2]
[388426845,1759165067941,5000.0,0.000234,2]
[388426846,1759165074150,-1534.85,0.00023434,2]
[388426847,1759165074181,-481.46208121,0.00023434,2]
[388426848,1759165074212,-111.52012124,0.00023436,2]
[388426849,1759165074242,-500.0,0.00023436,2]
[388426850,1759165074272,-383.62277077,0.00023436,2]
[388426851,1759165074302,-500.0,0.00023436,2]
[388426852,1759165074333,-500.0,0.00023436,2]
[388426853,1759165074363,-500.0,0.00023436,2]
[388426854,1759165074391,-477.10005356,0.00023436,2]
[388426855,1759165074505,-22.89994644,0.00023436,2]
[388426856,1759165074535,-500.0,0.00023436,2]
[388426857,1759165074563,-500.0,0.00023436,2]
[388426858,1759165074592,-500.0,0.00023436,2]
[388426859,1759165074621,-500.0,0.00023436,2]
[388426860,1759165074649,-500.0,0.00023436,2]
[388426861,1759165074678,-500.0,0.00023436,2]
[388426862,1759165074706,-622.96,0.00023436,2]
[388426863,1759165074735,-1134.68010712,0.00023436,2]
[388426864,1759165075015,-438.92989288,0.00023436,2]
[388426865,1759165075025,-22.89994644,0.00023436,2]
[388426867,1759165082322,200.0,0.000284,120]
[388426868,1759165084192,-300.0,0.00023433,2]
[388426869,1759165084223,-480.0,0.00023434,2]
[388426870,1759165084253,-480.0,0.00023434,2]
[388426871,1759165084283,-3239.01,0.00023434,2]
[388426872,1759165084349,-1001.99,0.00023434,2]
[388426873,1759165084382,-477.10005356,0.00023436,2]
[388426874,1759165084412,-500.0,0.00023436,2]
[388426875,1759165084443,-500.0,0.00023436,2]
[388426876,1759165084474,-500.0,0.00023436,2]
[388426877,1759165084508,-500.0,0.00023436,2]
[388426878,1759165084540,-500.0,0.00023436,2]
[388426879,1759165084571,-500.0,0.00023436,2]
[388426880,1759165084600,-344.37722923,0.00023436,2]
[388426881,1759165084628,-500.0,0.00023436,2]
[388426882,1759165084786,-1357.05543442,0.00023436,2]
[388426883,1759165090787,5000.0,0.000234,2]
[388426884,1759165095931,370000.0,0.00023351,2]
[388426886,1759165170222,5000.0,0.000234,2]
[388426889,1759165193021,5000.0,0.000234,2]
[388426890,1759165202654,160.41220625,0.0002276,5]
[388426891,1759165215540,5000.0,0.000234,2]
[388426897,1759165228326,179.05035782,0.00023333,2]
[388426898,1759165233331,179.05035782,0.00023335,2]
[388426899,1759165238184,5000.0,0.000234,2]
[388426900,1759165238324,179.05035782,0.00023336,2]
[388426901,1759165241608,370000.0,0.00023351,2]
[388426902,1759165260476,5000.0,0.000234,2]
[388426903,1759165279469,480.0,0.000234,2]
[388426904,1759165283413,5000.0,0.000234,2]
[388426905,1759165284492,214.98,0.000231,2]
[388426907,1759165296276,700.0,0.00022309,2]
[388426909,1759165306525,5000.0,0.000234,2]
[388426910,1759165306942,168.0,0.00022962,2]
[388426911,1759165312461,168.0,0.00022968,2]
[388426912,1759165317105,168.0,0.00022895,2]
[388426913,1759165327169,168.0,0.00023207,2]
[388426914,1759165329421,1484.9655183,0.000234,2]
[388426915,1759165372592,701.95534938,0.00023287,5]
[388426916,1759165396467,457.317641,0.00022436,2]
[388426917,1759165400003,-1200.0,0.00023432,2]
[388426918,1759165400039,-1200.0,0.00023432,2]
[388426919,1759165400067,-300.0,0.00023432,2]
[388426920,1759165400127,-4600.01,0.00023433,2]
[388426921,1759165400298,-10000.01,0.00023433,2]
[388426922,1759165400461,-10000.01,0.00023433,2]
[388426924,1759165400660,-10000.01,0.00023433,2]
[388426925,1759165400803,-10000.01,0.00023433,2]
[388426926,1759165400957,-4600.06,0.00023433,2]
[388426927,1759165400982,-799.89,0.00023433,2]
[388426928,1759165401088,-300.0,0.00023433,2]
[388426929,1759165401117,-300.0,0.00023433,2]
[388426930,1759165401145,-300.0,0.00023433,2]
[388426931,1759165401173,-500.0,0.00023433,2]
[388426932,1759165401200,-500.0,0.00023433,2]
[388426933,1759165401229,-500.0,0.00023433,2]
[388426934,1759165401258,-500.0,0.00023433,2]
[388426935,1759165401288,-500.0,0.00023433,2]
[388426936,1759165401317,-500.0,0.00023433,2]
[388426937,1759165401346,-500.0,0.00023433,2]
[388426938,1759165401374,-500.0,0.00023433,2]
[388426939,1759165401512,-500.0,0.00023433,2]
[388426940,1759165401540,-500.0,0.00023433,2]
[388426941,1759165401567,-500.0,0.00023433,2]
[388426942,1759165401782,-500.0,0.00023433,2]
[388426943,1759165401812,-506.62,0.00023433,2]
[388426944,1759165401840,-480.0,0.00023433,2]
[388426945,1759165401870,-480.0,0.00023433,2]
[388426946,1759165401899,-500.0,0.00023433,2]
[388426947,1759165401925,-500.0,0.00023433,2]
[388426948,1759165401951,-500.0,0.00023433,2]
[388426949,1759165402062,-500.0,0.00023433,2]
[388426950,1759165402090,-394.16545957,0.00023433,2]
[388426951,1759165402118,-500.0,0.00023433,2]
[388426952,1759165402146,-500.0,0.00023433,2]
[388426953,1759165402175,-500.0,0.00023433,2]
[388426954,1759165402204,-160.0,0.00023434,2]
[388426955,1759165402232,-480.0,0.00023434,2]
[388426956,1759165402260,-480.0,0.00023434,2]
[388426957,1759165402288,-480.0,0.00023434,2]
[388426958,1759165402315,-626.27,0.00023434,2]
[388426959,1759165402396,-1314.94,0.00023434,2]
[388426960,1759165402425,-480.0,0.00023434,2]
[388426961,1759165402454,-711.79,0.00023434,2]
[388426962,1759165402481,-1083.1,0.00023434,2]
[388426963,1759165402509,-1196.79,0.00023434,2]
[388426964,1759165403225,-535.2,0.00023434,2]
[388426965,1759165403234,-480.0,0.00023434,2]
[388426966,1759165403244,-17.33908086,0.00023434,2]
[388426967,1759165403263,-426.77,0.00023434,2]
[388426968,1759165405386,10138.0,0.0003366,60]
[388426969,1759165410963,110310.48091588,0.00023351,2]
[388426970,1759165410992,259689.51908412,0.00023351,2]
[388426971,1759165412007,-1693.76091914,0.00023434,2]
[388426972,1759165412035,-488.0,0.00023434,2]
[388426973,1759165412064,-2165.43,0.00023434,2]
[388426974,1759165412092,-558.19,0.00023434,2]
[388426975,1759165412183,-189.24816172,0.00023434,2]
[388426976,1759165412472,-438.86183828,0.00023434,2]
[388426977,1759165412501,-918.31,0.00023434,2]
[388426978,1759165412529,-480.0,0.00023434,2]
[388426979,1759165412555,-480.0,0.00023434,2]
[388426980,1759165412582,-532.21,0.00023434,2]
[388426981,1759165412609,-480.0,0.00023434,2]
[388426982,1759165412639,-1586.69,0.00023434,2]
[388426983,1759165412796,-167.86632344,0.00023434,2]
[388426984,1759165441101,160.0,0.000234,2]
[388426985,1759165444391,1014.0,0.00023,2]
[388426986,1759165454830,-582.58,0.00023432,2]
[388426987,1759165454857,-300.0,0.00023433,2]
[388426988,1759165454885,-500.0,0.00023433,2]
[388426989,1759165454915,-500.0,0.00023433,2]
[388426990,1759165454942,-500.0,0.00023433,2]
[388426991,1759165454970,-500.0,0.00023433,2]
[388426992,1759165455000,-479.95808879,0.00023433,2]
[388426993,1759165455028,-500.0,0.00023433,2]
[388426994,1759165455059,-500.0,0.00023433,2]
[388426995,1759165455089,-500.0,0.00023433,2]
[388426996,1759165455251,-500.0,0.00023433,2]
[388426997,1759165455281,-500.0,0.00023433,2]
[388426998,1759165455311,-500.0,0.00023433,2]
[388426999,1759165455339,-244.414441,0.00023433,2]
[388427000,1759165455368,-251.6404588,0.00023433,2]
[388427001,1759165455396,-458.46376076,0.00023433,2]
[388427002,1759165455426,-617.51663284,0.00023433,2]
[388427003,1759165455455,-1211.10367656,0.00023434,2]
[388427004,1759165455578,-694.8,0.00023434,2]
[388427005,1759165455650,-1389.6,0.00023434,2]
[388427006,1759165456240,-2779.2,0.00023434,2]
[388427007,1759165456350,-4441.61,0.00023434,2]
[388427008,1759165456360,-1708.6658825,0.00023434,2]
[388427009,1759165456398,-531.7141175,0.00023434,2]
[388427010,1759165456429,-2378.26,0.00023434,2]
[388427011,1759165456460,-188.22233062,0.00023434,2]
[388427012,1759165456487,-561.95,0.00023434,2]
[388427013,1759165456515,-480.0,0.00023434,2]
[388427014,1759165456582,-3042.64,0.00023434,2]
[388427015,1759165456591,-651.08,0.00023434,2]
[388427016,1759165456600,-480.0,0.00023434,2]
[388427017,1759165456610,-296.54355188,0.00023434,2]
[388427018,1759165456767,-734.30644812,0.00023434,2]
[388427019,1759165456794,-574.77,0.00023434,2]
[388427020,1759165456825,-1265.33,0.00023434,2]
[388427021,1759165456852,-2214.71,0.00023434,2]
[388427022,1759165456910,-480.0,0.00023434,2]
[388427023,1759165456939,-1722.47,0.00023434,2]
[388427024,1759165456967,-480.0,0.00023434,2]
[388427025,1759165456995,-1118.12,0.00023434,2]
[388427026,1759165457024,-480.0,0.00023435,2]
[388427027,1759165457054,-480.0,0.00023435,2]
[388427028,1759165457083,-48.95083968,0.00023435,2]
[388427029,1759165457241,-380.92832064,0.00023435,2]
[388427030,1759165457251,-151.19850906,0.00023435,2]
[388427031,1759165457269,-188.22233062,0.00023435,2]
[388427032,1759165457286,-140.57916032,0.00023435,2]
[388427033,1759165457295,-421.37083968,0.00023435,2]
[388427034,1759165457318,-58.62916032,0.00023435,2]
[388427035,1759165457327,-421.37083968,0.00023435,2]
[388427036,1759165457348,-108.54841976,0.00023435,2]
[388427037,1759165457357,-407.55143781,0.00023435,2]
[388427038,1759165457367,-480.0,0.00023435,2]
[388427039,1759165457375,-480.0,0.00023435,2]
[388427040,1759165457385,-243.61724619,0.00023435,2]
[388427041,1759165457488,-666.42275381,0.00023435,2]
[388427042,1759165457498,-67.88369431,0.00023435,2]
[388427043,1759165457515,-412.11630569,0.00023435,2]
[388427044,1759165457525,-162.65369431,0.00023435,2]
[388427045,1759165457538,-317.34630569,0.00023435,2]
[388427046,1759165457547,-549.51,0.00023435,2]
[388427047,1759165457557,-398.47369431,0.00023435,2]
[388427048,1759165457570,-259.93630569,0.00023435,2]
[388427049,1759165457579,-580.89,0.00023435,2]
[388427050,1759165457589,-541.9,0.00023435,2]
[388427051,1759165457598,-480.0,0.00023435,2]
[388427052,1759165457607,-351.98369431,0.00023435,2]
[388427053,1759165457621,-421.77710376,0.00023435,2]
[388427054,1759165457639,-181.19920193,0.00023435,2]
[388427055,1759165457648,-298.80079807,0.00023435,2]
[388427056,1759165457681,-210.73920193,0.00023435,2]
[388427057,1759165457690,-480.0,0.00023435,2]
[388427058,1759165457699,-480.0,0.00023435,2]
[388427059,1759165457708,-551.73079807,0.00023435,2]
[388427060,1759165457723,-480.0,0.00023435,2]
[388427061,1759165457737,-938.45920193,0.00023435,2]
[388427062,1759165457747,-179.66079807,0.00023435,2]
[388427063,1759165457766,-300.33920193,0.00023435,2]
[388427064,1759165457775,-179.66079807,0.00023435,2]
[388427065,1759165457789,-480.0,0.00023435,2]
[388427066,1759165457805,-429.87916032,0.00023435,2]
[388427067,1759165464392,5000.0,0.000234,2]
[388427068,1759165480991,-195.0676947,0.00023426,10]
[388427069,1759165483239,-159.2550529,0.00023426,10]
[388427070,1759165484815,-3532.14,0.00023427,3]
[388427071,1759165484857,-480.0,0.00023432,2]
[388427072,1759165484890,-480.0,0.00023432,2]
[388427073,1759165484921,-256.54,0.00023434,2]
[388427074,1759165485007,-502.65,0.00023434,2]
[388427075,1759165485042,-1373.43,0.00023434,2]
[388427076,1759165485072,-1238.93,0.00023434,2]
[388427077,1759165485102,-2161.23,0.00023434,2]
[388427078,1759165485174,-452.83,0.00023434,2]
[388427079,1759165485223,-212.7336861,0.00023434,2]
[388427080,1759165485252,-500.0,0.00023434,2]
[388427081,1759165485283,-194.62671765,0.00023434,2]
[388427082,1759165485312,-374.90261648,0.00023434,2]
[388427083,1759165485341,-2523.26004161,0.00023435,2]
[388427084,1759165485379,-480.0,0.00023435,2]
[388427085,1759165485408,-480.0,0.00023435,2]
[388427086,1759165485640,-1215.79,0.00023435,2]
[388427087,1759165485670,-480.0,0.00023435,2]
[388427088,1759165485703,-480.0,0.00023435,2]
[388427089,1759165485733,-480.0,0.00023435,2]
[388427090,1759165485763,-256.50838644,0.00023435,2]
[388427091,1759165485792,-480.0,0.00023435,2]
[388427092,1759165485820,-480.0,0.00023435,2]
[388427093,1759165485848,-611.79429863,0.00023435,2]
[388427094,1759165485876,-480.0,0.00023435,2]
[388427095,1759165485956,-480.0,0.00023435,2]
[388427096,1759165485984,-480.0,0.00023435,2]
[388427097,1759165486014,-4015.72,0.00023435,2]
[388427098,1759165486348,-600.39462986,0.00023434,2]
[388427099,1759165487258,5000.0,0.000234,2]
[388427100,1759165494855,-1766.07,0.00023428,3]
[388427101,1759165494885,-2586.48537014,0.00023434,2]
[388427102,1759165494916,-48.57,0.00023435,2]
[388427103,1759165494987,-1197.75925972,0.00023435,2]
[388427104,1759165495023,-273.14074028,0.00023435,2]
[388427105,1759165495051,-480.0,0.00023435,2]
[388427106,1759165495080,-998.21,0.00023435,2]
[388427107,1759165495108,-550.19,0.00023435,2]
[388427108,1759165495137,-480.0,0.00023435,2]
[388427109,1759165495166,-555.09,0.00023435,2]
[388427110,1759165495193,-480.0,0.00023435,2]
[388427111,1759165495221,-480.0,0.00023435,2]
[388427112,1759165495250,-480.0,0.00023435,2]
[388427113,1759165495369,-518.31,0.00023435,2]
[388427114,1759165495397,-480.0,0.00023435,2]
[388427115,1759165495426,-640.51,0.00023435,2]
[388427116,1759165495454,-480.0,0.00023435,2]
[388427117,1759165495483,-201.94616361,0.00023435,2]
[388427118,1759165495512,-531.0,0.00023435,2]
[388427119,1759165495542,-480.0,0.00023435,2]
[388427120,1759165495571,-480.0,0.00023435,2]
[388427121,1759165495600,-672.7,0.00023435,2]
[388427122,1759165495722,-1179.96,0.00023435,2]
[388427123,1759165495752,-480.0,0.00023435,2]
[388427124,1759165495783,-480.0,0.00023435,2]
[388427125,1759165495811,-480.0,0.00023435,2]
[388427126,1759165495842,-1703.23,0.00023435,2]
[388427127,1759165496162,4047.68184998,0.000234,2]
[388427128,1759165496295,-1353.63,0.00023435,2]
[388427129,1759165496305,-505.89,0.00023435,2]
[388427130,1759165496315,-551.08,0.00023435,2]
[388427131,1759165496324,-426.84767278,0.00023435,2]
[388427132,1759165499644,393.55300612,0.00023335,2]
[388427133,1759165504048,1189.32367197,0.000234,2]
[388427134,1759165504901,-217.74,0.00023427,10]
[388427135,1759165504929,-883.04,0.00023428,3]
[388427136,1759165504956,-480.0,0.00023432,2]
[388427137,1759165504986,-663.61,0.00023432,2]
[388427138,1759165505012,-626.47,0.00023432,2]
[388427139,1759165505039,-300.0,0.00023433,2]
[388427140,1759165505066,-1632.92,0.00023434,2]
[388427141,1759165505167,-629.55,0.00023434,2]
[388427142,1759165505194,-300.0,0.00023434,2]
[388427143,1759165505223,-300.0,0.00023434,2]
[388427144,1759165505250,-300.0,0.00023434,2]
[388427145,1759165505279,-456.53180682,0.00023434,2]
[388427146,1759165505308,-500.0,0.00023434,2]
[388427147,1759165505336,-316.87020888,0.00023434,2]
[388427148,1759165505368,-66.64232722,0.00023435,2]
[388427149,1759165505396,-1986.63131416,0.00023435,2]
[388427150,1759165505523,-287.55868584,0.00023435,2]
[388427151,1759165505549,-480.0,0.00023435,2]
[388427152,1759165505575,-480.0,0.00023435,2]
[388427153,1759165505603,-1407.8,0.00023435,2]
[388427154,1759165505630,-957.74,0.00023435,2]
[388427155,1759165505659,-480.0,0.00023435,2]
[388427156,1759165505685,-480.0,0.00023435,2]
[388427157,1759165505959,-996.68,0.00023435,2]
[388427158,1759165505985,-480.0,0.00023435,2]
[388427159,1759165506172,-480.0,0.00023435,2]
[388427160,1759165506201,-480.0,0.00023435,2]
[388427161,1759165506229,-1028.98,0.00023435,2]
[388427162,1759165506256,-480.0,0.00023435,2]
[388427163,1759165506283,-480.0,0.00023435,2]
[388427164,1759165506310,-480.0,0.00023435,2]
[388427165,1759165506400,-760.6,0.00023435,2]
[388427166,1759165506428,-1005.0,0.00023435,2]
[388427167,1759165506455,-632.52,0.00023435,2]
[388427168,1759165506488,-1081.27,0.00023435,2]
[388427169,1759165506517,-513.16,0.00023435,2]
[388427170,1759165506544,-480.0,0.00023435,2]
[388427171,1759165507141,-756.00385026,0.00023434,2]
[388427172,1759165507155,-443.99614974,0.00023434,2]
[388427173,1759165507164,-69.16385026,0.00023435,2]
[388427174,1759165507394,-480.0,0.00023435,2]
[388427175,1759165507408,-657.79614974,0.00023435,2]
[388427176,1759165507417,-397.11385026,0.00023435,2]
[388427177,1759165511972,5000.0,0.000234,2]
[388427178,1759165513448,-160.0,0.00023428,3]
[388427179,1759165516739,-281.52,0.00023428,3]
[388427180,1759165525342,-202.06685742,0.00023428,3]
[388427181,1759165527224,-18.69314258,0.00023428,3]
[388427182,1759165534462,5000.0,0.000234,2]
[388427183,1759165539277,150.0,0.000234,2]
[388427185,1759165550531,943.94212091,0.00023338,2]
[388427186,1759165551438,-203.45255763,0.00023428,3]
[388427188,1759165557135,4610.50102738,0.000234,2]
[388427189,1759165569166,-174.9,0.00023427,3]
[388427190,1759165569199,-250.78279605,0.00023428,3]
[388427191,1759165571698,-208.05464632,0.00023428,3]
[388427192,1759165572007,20.5249862,0.00023327,2]
[388427193,1759165572040,3717.65878056,0.00023327,2]
[388427194,1759165577446,370000.0,0.00023336,2]
[388427195,1759165585557,181.224444,0.00022437,2]
[388427196,1759165595086,150.0,0.00024,30]
[388427197,1759165646023,150.0,0.00028767,120]
[388427198,1759165679286,-184.7570488,0.00023426,3]
[388427199,1759165682401,-339.9829512,0.00023426,3]
[388427201,1759165688739,150.0,0.00026,60]
[388427202,1759165708599,167.2435714,0.00011217,2]
[388427207,1759165720715,150.0,0.00028767,120]
[388427208,1759165745475,370000.0,0.00023337,2]
[388427209,1759165807963,1451.8419346,0.00022435,2]
[388427211,1759165815467,-1200.0,0.0002343,2]
[388427212,1759165815496,-1200.0,0.00023431,2]
[388427213,1759165815525,-480.0,0.00023431,2]
[388427214,1759165815553,-480.0,0.00023431,2]
[388427215,1759165815580,-272.0,0.00023431,2]
[388427216,1759165815608,-300.0,0.00023431,2]
[388427217,1759165815637,-300.0,0.00023431,2]
[388427218,1759165815666,-300.0,0.00023431,2]
[388427219,1759165815694,-456.01,0.00023431,2]
[388427220,1759165816070,-23.99,0.00023431,2]
[388427221,1759165816100,-160.0,0.00023432,2]
[388427222,1759165816127,-480.0,0.00023432,2]
[388427223,1759165816154,-480.0,0.00023432,2]
[388427224,1759165816182,-1130.8,0.00023432,2]
[388427225,1759165816210,-2179.61,0.00023432,2]
[388427226,1759165816238,-480.0,0.00023432,2]
[388427227,1759165816280,-480.0,0.00023432,2]
[388427228,1759165816307,-632.91,0.00023432,2]
[388427229,1759165816334,-480.0,0.00023432,2]
[388427230,1759165816363,-1389.94,0.00023432,2]
[388427231,1759165816391,-480.0,0.00023432,2]
[388427232,1759165816420,-144.82,0.00023432,2]
[388427233,1759165816459,-2784.67,0.00023432,2]
[388427234,1759165816486,-480.0,0.00023432,2]
[388427235,1759165816514,-480.0,0.00023432,2]
[388427236,1759165816541,-917.83,0.00023432,2]
[388427237,1759165816568,-195.01,0.00023432,2]